bitfinex-derivatives/quotes_ETHF0:USTF0_20250106
["timestamp","ask_amount","ask_price","bid_price","bid_amount"]
[1736126972275,2.9496475,3625.3,3625.1,2.08223803]
[1736126973071,2.9496475,3625.3,3625.2,1.00477756]
[1736126973978,0.24834,3625.0,3624.9,1.00477756]
[1736126974171,3.2078,3625.0,3624.7,1.00477756]
[1736126974374,0.24835,3624.8,3624.7,1.00477756]
[1736126976479,2.40166267,3624.8,3624.7,1.00477756]
[1736126977179,0.24836,3624.7,3624.5,0.24837]
[1736126977378,3.2078,3624.6,3624.5,0.24837]
[1736126977780,3.45616,3624.6,3624.4,2.3271011]
[1736126978879,0.24837,3624.5,3624.4,2.0787311]
[1736126979179,3.45616,3624.6,3624.4,2.0787311]
[1736126980484,3.2078,3624.6,3624.4,2.0787311]
[1736126980782,0.24838,3624.3,3624.1,2.0787311]
[1736126981083,0.24838,3624.4,3624.0,0.2484]
[1736126981287,0.5432,3624.2,3624.0,0.2484]
[1736126982587,0.5524,3624.1,3624.0,0.2484]
[1736126982788,0.5524,3624.1,3623.9,0.24841]
[1736126982984,0.2484,3624.0,3623.7,6.74772899]
[1736126983187,3.2078,3623.8,3623.7,6.49930899]
[1736126983389,3.2078,3623.8,3623.7,6.74772899]
[1736126983794,3.2078,3623.8,3623.7,0.24842]
[1736126985398,3.2078,3623.8,3623.5,2.0787311]
[1736126985399,2.70571267,3624.1,3624.0,0.2484]
[1736126985698,2.15331267,3624.1,3624.0,0.2484]
[1736126986192,0.24836,3624.6,3624.0,0.5216]
[1736126986193,2.15331267,3624.5,3624.0,0.5216]
[1736126986397,2.15331267,3624.5,3624.2,0.24838]
[1736126986594,2.15331267,3624.5,3624.3,0.24838]
[1736126987098,2.15331267,3624.5,3624.4,0.24837]
[1736126987695,2.40167267,3624.6,3624.4,0.24837]
[1736126988796,2.40167267,3624.6,3624.3,0.24838]
[1736126989000,0.24837,3624.5,3624.3,0.24838]
[1736126989500,0.24839,3624.2,3624.0,0.2484]
[1736126989701,0.2484,3624.1,3623.8,0.24841]
[1736126989901,3.2078,3624.0,3623.8,0.24841]
[1736126990303,3.2078,3624.0,3623.7,9.11014009]
[1736126990696,3.4562,3624.0,3623.8,0.24841]
[1736126990895,3.2078,3624.0,3623.9,0.24841]
[1736126994504,3.2078,3624.0,3623.7,2.6108311]
[1736126994705,3.2078,3624.0,3623.8,0.24841]
[1736126996506,3.7355,3624.0,3623.8,0.24841]
[1736126997209,0.24841,3623.9,3623.7,2.0787311]
[1736126997508,3.9839,3624.0,3623.7,2.3271511]
[1736126999202,3.7355,3624.0,3623.7,2.0787311]
[1736126999406,3.98391,3624.0,3623.7,2.3271511]
[1736126999606,3.98391,3624.0,3623.7,0.24842]
[1736126999807,0.24841,3623.9,3623.6,2.3271611]
[1736127000008,0.24841,3623.9,3623.6,2.0787311]
[1736127000208,4.2754,3624.0,3623.8,0.24841]
[1736127000407,4.5238,3624.0,3623.7,0.24842]
[1736127001002,3.7355,3624.0,3623.7,0.24842]
[1736127001210,3.7355,3624.0,3623.9,2.3271411]
[1736127001406,3.2078,3624.0,3623.9,2.3271411]
[1736127001709,2.15331267,3624.2,3624.1,0.24839]
[1736127002510,0.5553,3624.3,3624.1,0.24839]
[1736127003211,0.5553,3624.3,3623.9,2.0787311]
[1736127003402,0.5553,3624.3,3624.2,0.24839]
[1736127004007,0.5553,3624.3,3623.9,2.0787311]
[1736127004401,3.2078,3624.0,3623.9,2.3271411]
[1736127004707,3.2078,3624.0,3623.9,2.0787311]
[1736127004908,3.4562,3624.0,3623.9,2.0787311]
[1736127005106,3.2078,3624.0,3623.6,6.49930899]
[1736127005307,3.2078,3624.0,3623.8,0.24841]
[1736127005503,3.4562,3624.0,3623.7,2.0787311]
[1736127005704,3.4562,3624.0,3623.7,2.3271511]
[1736127006104,3.2078,3624.0,3623.8,0.24842]
[1736127006307,3.4562,3624.0,3623.7,2.3271511]
[1736127006711,3.2078,3624.0,3623.8,0.24841]
[1736127006910,3.2078,3624.0,3623.9,0.24841]
[1736127007306,2.15331267,3624.1,3624.0,0.2484]
[1736127007509,2.15331267,3624.1,3624.0,2.3271311]
[1736127008013,0.5553,3624.3,3624.2,0.24839]
[1736127008014,2.70861267,3624.3,3624.2,0.24839]
[1736127008216,2.70861267,3624.3,3624.0,2.0787311]
[1736127008408,2.70861267,3624.3,3624.0,2.3271311]
[1736127008809,2.95699267,3624.3,3624.0,2.3271311]
[1736127009407,0.24839,3624.2,3623.9,2.3271311]
[1736127009611,2.70861267,3624.3,3623.6,8.57804009]
[1736127009812,2.70861267,3624.3,3623.7,0.24842]
[1736127009813,0.24841,3624.0,3623.7,0.24842]
[1736127011309,2.70861267,3624.3,3623.6,2.0787311]
[1736127011521,2.95700267,3624.3,3624.0,0.2484]
[1736127011716,2.70861267,3624.3,3623.9,2.0787311]
[1736127012008,2.70861267,3624.3,3624.1,0.24839]
[1736127012407,2.70861267,3624.3,3623.9,2.0787311]
[1736127012605,2.70861267,3624.3,3624.2,0.24839]
[1736127013309,2.70861267,3624.3,3624.2,2.3271211]
[1736127013509,2.15331267,3624.3,3624.2,2.3271211]
[1736127013704,3.2078,3624.4,3624.2,2.0787311]
[1736127013705,5.36111267,3624.4,3624.2,2.0787311]
[1736127013918,5.36111267,3624.4,3624.3,0.80548]
[1736127014113,5.36111267,3624.4,3624.3,1.36538]
[1736127014614,2.15331267,3624.4,3624.3,1.36538]
[1736127015318,3.7643,3624.8,3624.7,0.24835]
[1736127015611,3.2078,3624.8,3624.7,2.3270811]
[1736127016412,2.15331267,3625.1,3625.0,0.24833]
[1736127016710,2.15331267,3625.1,3625.0,2.3270611]
[1736127017109,2.15331267,3625.1,3625.0,6.6108611]
[1736127017711,2.15331267,3625.6,3625.5,0.2483]
[1736127018818,3.2078,3625.8,3625.4,2.0787311]
[1736127019013,3.2078,3625.8,3625.7,2.3270211]
[1736127020722,3.2078,3625.8,3625.7,2.0787311]
[1736127021322,3.2078,3625.8,3625.7,2.3270211]
[1736127022320,3.2078,3625.8,3625.7,2.0787311]
[1736127022520,3.2078,3625.8,3625.7,2.3270211]
[1736127022713,3.2078,3625.8,3625.7,2.0787311]
[1736127023826,3.2078,3625.8,3625.7,2.3270211]
[1736127024623,3.2078,3625.8,3625.7,2.0787311]
[1736127025020,3.2078,3625.8,3625.7,2.3270211]
[1736127025225,3.2078,3625.8,3625.7,2.0787311]
[1736127025428,3.2078,3625.8,3625.7,2.3270211]
[1736127026832,3.2078,3625.8,3625.7,2.0787311]
[1736127027428,3.2078,3625.8,3625.7,2.3270211]
[1736127028730,3.2078,3625.8,3625.7,2.0787311]
[1736127029331,3.2078,3625.8,3625.7,2.3270211]
[1736127029833,3.2078,3625.8,3625.7,2.0787311]
[1736127030025,3.2078,3625.8,3625.7,2.3270211]
[1736127031523,0.5367,3626.0,3625.8,0.24828]
[1736127032332,1.0384,3626.1,3626.0,0.24826]
[1736127033229,0.5096,3626.1,3626.0,0.24826]
[1736127034628,3.728,3626.6,3626.3,0.24824]
[1736127034834,0.5282,3626.5,3626.3,0.24824]
[1736127035033,0.5282,3626.5,3626.0,2.0787311]
[1736127035235,3.2078,3626.1,3626.0,2.0787311]
[1736127035435,3.2078,3626.1,3626.0,2.3269911]
[1736127035638,3.2078,3626.1,3626.0,2.0787311]
[1736127035936,3.2078,3626.1,3626.0,2.3269911]
[1736127039847,3.2078,3626.1,3626.0,2.0787311]
[1736127040036,3.2078,3626.1,3626.0,2.3269911]
[1736127040948,3.2078,3626.1,3625.9,0.24826]
[1736127041149,1.0909,3626.0,3625.9,0.24826]
[1736127042546,3.2078,3626.1,3626.0,0.24826]
[1736127042850,3.2078,3626.1,3626.0,2.3269911]
[1736127048353,0.5206,3626.4,3626.0,2.0787311]
[1736127048550,0.5206,3626.4,3626.3,0.24824]
[1736127048852,3.736,3626.5,3626.4,0.24824]
[1736127050844,3.2078,3626.5,3626.4,1.33244]
[1736127051049,3.2078,3626.5,3626.4,1.88054]
[1736127051345,3.2078,3627.0,3626.4,1.6323]
[1736127051546,3.2078,3627.0,3626.9,2.3269311]
[1736127053657,3.2078,3627.0,3626.9,2.0787311]
[1736127054246,3.2078,3627.0,3626.4,1.6323]
[1736127054247,3.456,3627.0,3626.6,2.3269511]
[1736127054455,3.2078,3627.0,3626.6,2.0787311]
[1736127054648,3.2078,3627.0,3626.8,0.24821]
[1736127055252,3.456,3627.0,3626.7,0.24821]
[1736127055453,3.2078,3627.0,3626.8,0.24821]
[1736127055757,3.456,3627.0,3626.6,2.3269511]
[1736127055953,3.2078,3627.0,3626.6,2.0787311]
[1736127056154,0.5463,3626.9,3626.6,2.0787311]
[1736127056457,0.24821,3626.8,3626.6,2.0787311]
[1736127058350,0.7945,3626.9,3626.6,2.3269511]
[1736127058750,0.5463,3626.9,3626.6,2.0787311]
[1736127058955,0.5463,3626.9,3626.7,0.24822]
[1736127059660,3.456,3627.0,3626.7,0.24822]
[1736127059956,3.2078,3627.0,3626.9,2.3269311]
[1736127061252,3.2078,3627.0,3626.9,2.32441845]
[1736127063055,3.2078,3627.0,3626.9,2.0787311]
[1736127063263,3.456,3627.0,3626.9,2.0787311]
[1736127063463,3.2078,3627.0,3626.9,2.0787311]
[1736127064453,3.2078,3627.0,3626.9,2.3269311]
[1736127064861,3.2078,3627.0,3626.9,2.0787311]
[1736127065263,3.456,3627.0,3626.9,2.0787311]
[1736127065663,3.9849,3627.0,3626.9,2.0787311]
[1736127065857,3.9849,3627.0,3626.7,0.24822]
[1736127066572,3.9849,3627.0,3626.9,0.2482]
[1736127066573,3.2078,3627.0,3626.9,0.2482]
[1736127066774,3.2078,3627.0,3626.9,2.0787311]
[1736127067275,2.71111267,3627.1,3626.9,2.3269311]
[1736127067465,0.5578,3627.1,3626.9,2.3269311]
[1736127067666,0.5578,3627.1,3627.0,0.2482]
[1736127068063,0.5578,3627.1,3626.9,2.0787311]
[1736127068270,0.5578,3627.1,3626.6,6.95121473]
[1736127068469,0.80599,3627.1,3626.8,0.24821]
[1736127069074,3.2078,3627.0,3626.8,0.24821]
[1736127069375,0.24821,3626.8,3626.7,4.31358363]
[1736127069763,0.24821,3626.9,3626.7,4.31358363]
[1736127069968,0.24821,3626.9,3626.6,0.24822]
[1736127070163,5.36111267,3627.0,3626.7,2.0787311]
[1736127070474,5.36111267,3627.0,3626.9,0.2482]
[1736127071171,3.2078,3627.0,3626.9,0.2482]
[1736127071770,3.2078,3627.0,3626.8,1.0958]
[1736127071971,3.2078,3627.0,3626.9,0.2482]
[1736127072374,3.2078,3627.0,3626.8,1.34401]
[1736127072571,3.2078,3627.0,3626.8,1.0958]
[1736127072767,3.2078,3627.0,3626.9,0.2482]
[1736127073174,3.2078,3627.0,3626.9,0.7923]
[1736127073978,2.69041267,3627.4,3627.3,0.24818]
[1736127074175,2.69041267,3627.4,3627.3,2.3269111]
[1736127074976,2.15331267,3627.4,3627.3,2.3269111]
[1736127075179,3.2078,3627.5,3627.3,2.3269111]
[1736127075369,3.2078,3627.5,3627.4,0.527]
[1736127076775,3.2078,3627.5,3627.3,2.0787311]
[1736127077775,3.45596,3627.5,3627.3,2.0787311]
[1736127077964,3.2078,3627.5,3627.3,2.0787311]
[1736127078572,3.2078,3627.5,3627.3,2.3269011]
[1736127079875,3.2078,3627.5,3627.3,2.0787311]
[1736127080771,0.24818,3627.3,3627.0,2.0787311]
[1736127080979,3.2078,3627.1,3626.9,4.31358363]
[1736127081177,0.8151,3627.0,3626.9,4.31358363]
[1736127081370,0.5669,3627.0,3626.9,4.31358363]
[1736127081774,0.8151,3627.0,3626.9,4.31358363]
[1736127081971,0.8151,3627.0,3626.7,2.0787311]
[1736127082177,0.5669,3627.0,3626.7,2.3269411]
[1736127082776,0.5669,3627.0,3626.7,2.0787311]
[1736127083278,0.8151,3627.0,3626.7,2.0787311]
[1736127083971,0.5669,3627.0,3626.7,2.0787311]
[1736127084279,0.24821,3626.8,3626.4,2.3269611]
[1736127084474,0.5669,3627.0,3626.4,2.0787311]
[1736127084475,4.00412,3626.7,3626.4,2.0787311]
[1736127084777,0.5795,3626.6,3626.4,2.0787311]
[1736127085575,0.82773,3626.6,3626.4,2.0787311]
[1736127085881,0.5795,3626.6,3626.4,2.0787311]
[1736127086378,0.5795,3626.6,3626.4,2.3269711]
[1736127086679,0.82773,3626.6,3626.4,2.0787311]
[1736127088279,0.5795,3626.6,3626.2,4.31358363]
[1736127088472,3.2078,3626.3,3626.2,4.31358363]
[1736127088874,3.45604,3626.3,3626.2,4.31358363]
[1736127089276,3.45604,3626.3,3626.1,4.31358363]
[1736127089480,1.0986,3626.2,3626.1,4.31358363]
[1736127089877,1.34685,3626.2,3626.1,4.31358363]
[1736127090178,1.0986,3626.2,3626.1,4.31358363]
[1736127090379,1.0986,3626.2,3626.1,6.39231473]
[1736127090775,3.25191267,3626.2,3626.1,2.0787311]
[1736127091173,3.25191267,3626.2,3626.1,2.3269911]
[1736127092079,1.0986,3626.2,3626.1,2.3269911]
[1736127092279,1.0986,3626.2,3626.1,2.0787311]
[1736127092989,0.5548,3626.2,3626.1,2.3269911]
[1736127095383,0.5548,3626.2,3626.1,6.64057473]
[1736127095584,2.40154267,3626.6,3626.2,0.24825]
[1736127095890,2.40154267,3626.6,3626.4,2.0787311]
[1736127097377,2.15331267,3626.6,3626.4,2.0787311]
[1736127098286,2.15331267,3626.6,3626.4,2.3269611]
[1736127099488,2.98373267,3626.7,3626.4,2.3269611]
[1736127100385,2.98373267,3626.7,3626.4,2.0787311]
[1736127100591,2.98373267,3626.7,3626.5,0.24823]
[1736127100892,2.73551267,3626.7,3626.5,0.24823]
[1736127101192,2.98373267,3626.7,3626.4,2.0787311]
[1736127101391,2.98373267,3626.7,3626.4,2.3269611]
[1736127102084,0.24822,3626.6,3626.4,2.3269611]
[1736127102386,2.40153267,3626.7,3626.4,2.0787311]
[1736127102692,0.577,3626.5,3626.4,2.3269611]
[1736127103086,0.577,3626.5,3626.1,2.0787311]
[1736127103281,3.2078,3626.2,3626.1,2.0787311]
[1736127103490,3.2078,3626.2,3626.0,4.31358363]
[1736127103691,3.2078,3626.2,3626.0,4.56184363]
[1736127103880,3.2078,3626.2,3626.0,4.31358363]
[1736127104489,0.24826,3626.1,3626.0,4.31358363]
[1736127104682,0.5462,3626.1,3625.7,4.31358363]
[1736127104882,3.2078,3625.8,3625.7,4.31358363]
[1736127105993,3.2078,3625.8,3625.6,0.24829]
[1736127107287,3.2078,3625.8,3625.4,4.31358363]
[1736127107483,0.24831,3625.4,3625.3,4.31358363]
[1736127107793,3.45611,3625.4,3625.3,4.31358363]
[1736127108797,3.2078,3625.4,3624.9,2.0787311]
[1736127108997,1.85982,3625.3,3624.9,2.3270711]
[1736127110098,1.6115,3625.3,3625.0,0.24833]
[1736127114194,1.6115,3625.3,3624.9,2.0787311]
[1736127114397,1.6115,3625.3,3625.0,0.24833]
[1736127115391,1.6115,3625.3,3625.1,0.24832]
[1736127115590,1.6115,3625.3,3624.9,2.0787311]
[1736127115794,1.6115,3625.3,3625.2,2.3270511]
[1736127117097,1.6115,3625.3,3625.2,2.0787311]
[1736127117300,1.6115,3625.3,3625.2,2.3270511]
[1736127117601,1.6115,3625.3,3625.2,2.0787311]
[1736127118404,1.6115,3625.3,3625.2,2.3270511]
[1736127118610,1.6115,3625.3,3625.2,2.0787311]
[1736127120310,1.6115,3625.3,3625.2,2.3270511]
[1736127120805,1.6115,3625.3,3625.2,2.0787311]
[1736127121204,1.6115,3625.3,3625.2,2.3270511]
[1736127124416,3.2078,3625.4,3625.3,0.24831]
[1736127124610,3.2078,3625.8,3625.6,0.24829]
[1736127124814,3.2078,3625.8,3625.7,0.24829]
[1736127125012,3.2078,3625.8,3625.6,0.24829]
[1736127125212,3.2078,3625.8,3625.7,0.24829]
[1736127135420,3.2078,3625.8,3625.7,2.3270211]
[1736127139818,3.2078,3625.8,3625.7,0.24829]
[1736127144116,0.6076,3626.2,3625.6,2.0787311]
[1736127144322,0.6076,3626.2,3626.1,2.3269911]
[1736127145813,0.6076,3626.2,3626.1,2.0787311]
[1736127146830,0.6076,3626.2,3626.1,2.3269911]
[1736127147023,0.6076,3626.2,3626.1,2.0787311]
[1736127148124,0.6076,3626.2,3626.1,2.3269911]
[1736127148730,3.2078,3626.3,3626.1,2.0787311]
[1736127148931,3.2078,3626.3,3626.2,0.24825]
[1736127149128,2.15331267,3626.5,3626.4,0.24824]
[1736127149330,2.15331267,3626.5,3626.4,2.3269711]
[1736127149828,0.5682,3626.6,3626.4,2.0787311]
[1736127150029,0.5682,3626.6,3626.5,0.24823]
[1736127151935,5.91491267,3626.8,3626.7,0.24822]
[1736127151936,5.36111267,3626.8,3626.7,0.24822]
[1736127152127,5.36111267,3626.8,3626.7,2.3269511]
[1736127152433,3.2078,3626.8,3626.7,2.3269511]
[1736127153734,3.2078,3626.8,3626.7,2.0787311]
[1736127154928,3.45601,3626.8,3626.4,6.64054473]
[1736127155130,3.45601,3626.8,3626.3,4.31358363]
[1736127155131,0.24823,3626.5,3626.3,4.31358363]
[1736127155334,4.06374,3626.4,3626.3,4.31358363]
[1736127155630,4.62144,3626.4,3626.3,4.31358363]
[1736127155832,9.3732,3626.4,3626.1,6.49930899]
[1736127156032,0.24825,3626.2,3626.1,4.66570899]
[1736127156735,7.60069357,3626.4,3625.6,0.24829]
[1736127156934,3.2078,3625.7,3625.6,0.24829]
[1736127157332,3.2078,3625.7,3625.5,0.84869]
[1736127158232,3.2078,3625.7,3625.5,0.6004]
[1736127158633,3.2078,3625.7,3625.5,0.8487]
[1736127158834,3.2078,3625.7,3625.5,0.6004]
[1736127159037,3.45609,3625.7,3625.5,0.6004]
[1736127159334,3.2078,3625.7,3625.5,0.6004]
[1736127159936,3.45609,3625.7,3625.5,0.6004]
[1736127160137,3.2078,3625.7,3625.5,0.6004]
[1736127160333,3.2078,3625.7,3625.5,0.84869]
[1736127160539,3.2078,3625.7,3625.6,0.24829]
[1736127160735,3.2078,3625.7,3625.5,0.8487]
[1736127161737,2.97276887,3625.9,3625.5,0.8487]
[1736127161945,0.82157,3625.9,3625.5,0.8487]
[1736127162238,0.24828,3625.8,3625.5,0.8487]
[1736127162436,0.5733,3625.9,3625.5,0.6004]
[1736127162637,2.15119887,3626.0,3625.9,0.24827]
[1736127163235,5.35899887,3626.1,3626.0,0.24826]
[1736127163440,5.35899887,3626.1,3626.0,2.3269911]
[1736127163634,2.15119887,3626.1,3626.0,2.3269911]
[1736127164139,2.15119887,3626.1,3626.0,2.0787311]
[1736127164339,0.24824,3626.3,3626.0,2.0787311]
[1736127164845,3.2078,3626.1,3625.8,0.5791]
[1736127165033,0.24827,3626.0,3625.8,0.5791]
[1736127165229,0.81347,3626.0,3625.8,0.5791]
[1736127166142,0.24828,3625.9,3625.5,0.84869]
[1736127166536,0.24829,3625.6,3625.3,1.7024]
[1736127166736,0.5769,3625.5,3625.3,1.7024]
[1736127166936,3.2078,3625.7,3625.4,2.0787311]
[1736127167136,3.2078,3625.7,3625.4,2.3270311]
[1736127168345,5.35899887,3625.7,3625.4,2.3270311]
[1736127168640,5.35899887,3625.7,3625.4,2.0787311]
[1736127168840,5.60728887,3625.7,3625.4,2.0787311]
[1736127169536,3.45609,3625.7,3625.4,2.0787311]
[1736127170539,0.24829,3625.6,3625.4,2.0787311]
[1736127171041,0.2483,3625.5,3625.4,2.0787311]
[1736127171244,0.24829,3625.6,3625.4,2.0787311]
[1736127171738,3.2078,3625.7,3625.1,0.593]
[1736127171930,3.2078,3625.7,3624.8,10.74806746]
[1736127171931,3.2078,3625.2,3624.9,0.5711]
[1736127172135,3.2078,3625.2,3624.9,1.115]
[1736127172443,3.2078,3625.2,3624.9,1.36334]
[1736127173045,3.2078,3625.2,3625.1,2.0787311]
[1736127173237,3.2078,3625.2,3625.1,2.3270611]
[1736127173635,3.2078,3625.2,3625.1,2.0787311]
[1736127174539,3.2078,3625.2,3624.9,0.81944]
[1736127174744,3.45613,3625.2,3624.9,0.5711]
[1736127174946,3.99883,3625.2,3624.9,0.5711]
[1736127175138,3.99882,3625.2,3624.9,0.5711]
[1736127175738,3.2078,3625.2,3624.9,0.81943]
[1736127175945,5.35899887,3625.2,3624.9,0.81943]
[1736127176538,5.35899887,3625.2,3624.9,0.5711]
[1736127177444,0.24833,3625.0,3624.9,0.5711]
[1736127177642,0.24834,3624.9,3624.5,2.3270911]
[1736127177939,1.40504,3624.9,3624.5,2.3270911]
[1736127178344,3.2078,3624.7,3624.5,2.3270911]
[1736127178541,3.2078,3624.7,3624.5,2.0787311]
[1736127178746,3.2078,3624.7,3624.4,1.1011]
[1736127179045,3.45616,3624.7,3624.4,1.1011]
[1736127179843,3.2078,3624.7,3624.4,1.1011]
[1736127180141,3.2078,3624.7,3624.5,2.3270911]
[1736127180739,3.2078,3624.7,3624.5,2.0787311]
[1736127181246,3.2078,3624.7,3624.5,2.3270911]
[1736127184146,3.2078,3624.7,3624.6,0.24836]
[1736127188453,3.2078,3625.1,3624.8,0.24834]
[1736127188643,3.2078,3625.1,3624.5,2.0787311]
[1736127188952,3.2078,3625.1,3624.9,0.24834]
[1736127189247,3.2078,3625.1,3625.0,0.5886]
[1736127189447,3.2078,3625.1,3625.0,0.83693]
[1736127189656,5.35899887,3625.5,3625.4,0.24831]
[1736127190250,5.35899887,3625.5,3625.3,0.24831]
[1736127190549,5.35899887,3625.5,3625.4,0.24831]
[1736127191050,3.2078,3625.5,3625.4,0.24831]
[1736127191946,3.2078,3625.5,3625.2,2.0787311]
[1736127191947,3.2078,3625.5,3625.3,0.24831]
[1736127192138,3.2078,3625.5,3625.0,0.5886]
[1736127192139,0.24832,3625.2,3625.0,0.5886]
[1736127192341,3.2078,3625.1,3625.0,0.5886]
[1736127193249,3.2078,3625.1,3625.0,0.83693]
[1736127193547,3.2078,3625.6,3625.0,0.5886]
[1736127193743,5.35899887,3625.6,3625.4,0.2483]
[1736127193944,5.35899887,3625.6,3625.5,0.5435]
[1736127195151,3.2078,3625.6,3625.5,0.5435]
[1736127195350,3.2078,3625.6,3625.5,0.7918]
[1736127196344,5.35899887,3626.0,3625.9,0.24827]
[1736127196545,5.35899887,3626.0,3625.9,2.3270011]
[1736127196952,5.35899887,3626.0,3625.9,0.24827]
[1736127197162,5.35899887,3626.0,3625.6,2.6666311]
[1736127197163,5.35899887,3626.0,3625.7,0.24828]
[1736127197357,5.35899887,3626.0,3625.8,0.24827]
[1736127197751,3.2078,3626.0,3625.7,0.5805]
[1736127197952,3.2078,3626.0,3625.7,0.82878]
[1736127199055,0.24828,3625.9,3625.6,2.6666311]
[1736127199256,0.24828,3625.9,3625.6,0.5879]
[1736127199551,0.24829,3625.7,3625.6,0.5879]
[1736127199854,0.24831,3625.4,3624.8,0.24835]
[1736127200053,3.2078,3625.3,3625.0,0.24833]
[1736127200553,3.2078,3625.3,3624.9,1.166]
[1736127200753,3.2078,3625.3,3625.1,0.24833]
[1736127201345,3.2078,3625.3,3625.0,0.24833]
[1736127206350,3.2078,3625.3,3625.1,2.3270511]
[1736127206551,2.39949887,3625.5,3625.1,2.0787311]
[1736127206552,2.15119887,3625.5,3625.1,2.0787311]
[1736127206757,2.15119887,3625.5,3625.1,2.3270511]
[1736127206758,2.39949887,3625.5,3625.1,2.3270511]
[1736127206960,2.39949887,3625.5,3625.1,2.3270611]
[1736127207753,0.2483,3625.5,3625.1,2.3270611]
[1736127209569,0.24831,3625.4,3625.1,2.0787311]
[1736127211160,3.2078,3625.3,3625.1,2.0787311]
[1736127211361,0.24832,3625.2,3624.9,1.166]
[1736127211564,0.24833,3625.0,3624.9,1.166]
[1736127213171,0.5811,3625.2,3624.9,1.166]
[1736127213363,0.24833,3625.1,3624.9,1.166]
[1736127213564,3.47582357,3625.1,3624.9,1.166]
[1736127214166,3.2078,3625.0,3624.9,1.166]
[1736127217368,5.36228367,3625.0,3624.9,1.166]
[1736127220765,2.15448367,3625.0,3624.9,1.166]
[1736127221071,5.36228367,3625.0,3623.9,3.2078]
[1736127221267,5.36228367,3625.0,3624.5,0.5327]
[1736127221464,0.24834,3624.9,3624.5,0.78107]
[1736127221665,3.2078,3624.6,3624.5,0.5327]
[1736127221967,3.2078,3624.6,3624.2,1.086]
[1736127222269,3.2078,3624.6,3624.2,1.1229]
[1736127222270,0.78487,3624.5,3624.2,1.1229]
[1736127222469,0.78487,3624.5,3624.1,8.66933636]
[1736127222470,1.33537,3624.5,3624.1,8.66933636]
[1736127222664,0.24841,3623.9,3623.7,6.50149928]
[1736127222861,3.45621,3623.9,3623.7,6.50149928]
[1736127223968,0.5365,3623.8,3623.7,6.50149928]
[1736127224267,2.69098367,3623.8,3623.6,0.5819]
[1736127225765,0.5365,3623.8,3623.6,0.5819]
[1736127228569,0.24842,3623.7,3623.6,0.5819]
[1736127228877,0.24844,3623.5,3622.9,8.82870038]
[1736127229082,3.45624,3623.4,3623.0,0.5402]
[1736127229675,0.24846,3623.2,3623.0,0.5402]
[1736127229872,0.24845,3623.3,3623.0,0.5402]
[1736127230475,3.2078,3623.4,3623.1,0.24846]
[1736127230676,3.2078,3623.4,3623.0,0.78867]
[1736127230879,3.45624,3623.4,3623.0,0.5402]
[1736127231573,3.45624,3623.4,3623.0,0.78867]
[1736127231773,3.2078,3623.4,3623.0,0.24847]
[1736127231972,3.2078,3623.4,3623.1,1.0645]
[1736127232572,3.2078,3623.4,3623.1,3.1432311]
[1736127232776,3.2078,3623.4,3623.3,0.24845]
[1736127233477,3.2078,3623.9,3623.1,3.1432311]
[1736127233877,3.45621,3623.9,3623.3,0.24844]
[1736127234073,3.45621,3623.9,3623.1,3.1432311]
[1736127234378,3.45621,3623.9,3623.4,0.24844]
[1736127234781,3.45621,3623.9,3623.5,0.5308]
[1736127235879,3.45621,3623.9,3623.5,0.77924]
[1736127236181,3.2078,3623.9,3623.5,0.77924]
[1736127236482,3.2078,3623.9,3623.5,0.5308]
[1736127236684,2.40286367,3624.3,3623.9,0.2484]
[1736127236887,2.15448367,3624.3,3624.0,1.0598]
[1736127237082,2.15448367,3624.3,3624.0,1.3082]
[1736127237287,5.61066367,3624.4,3624.0,1.3082]
[1736127237688,5.61066367,3624.4,3624.1,0.24839]
[1736127238283,3.2078,3624.4,3624.0,1.0598]
[1736127238482,0.24838,3624.3,3624.0,1.30819]
[1736127239390,0.24839,3624.2,3624.0,1.0598]
[1736127239691,3.2078,3624.4,3624.0,1.0598]
[1736127239692,0.24839,3624.1,3624.0,0.5099]
[1736127239888,0.75099,3624.1,3624.0,0.5099]
[1736127240188,0.5026,3624.1,3624.0,0.5099]
[1736127240389,3.2078,3624.4,3624.0,0.7583]
[1736127240588,0.24839,3624.3,3624.0,0.7583]
[1736127240790,0.24839,3624.3,3624.1,0.77249]
[1736127241184,0.24839,3624.3,3624.1,0.5241]
[1736127241789,0.24839,3624.2,3624.1,0.5241]
[1736127248193,3.2078,3624.4,3624.1,0.5241]
[1736127248394,3.2078,3624.4,3624.3,0.24838]
[1736127251194,3.2078,3624.4,3624.2,0.24839]
[1736127252599,3.2078,3624.4,3624.3,0.24838]
[1736127252988,3.2078,3624.4,3624.2,0.24839]
[1736127253194,3.2078,3624.4,3624.1,1.0298]
[1736127253393,0.24838,3624.3,3624.1,1.0298]
[1736127254101,3.2078,3624.4,3624.1,1.27819]
[1736127254398,0.24839,3624.3,3624.1,1.0298]
[1736127254599,0.24839,3624.2,3624.1,1.0298]
[1736127254801,0.24839,3624.2,3624.1,0.5241]
[1736127255295,0.24839,3624.1,3624.0,0.5099]
[1736127257298,0.5124,3624.3,3624.2,0.24839]
[1736127257299,2.15448367,3624.3,3624.2,0.24839]
[1736127258400,1.34518367,3624.7,3624.6,0.24836]
[1736127259296,1.34518367,3624.7,3624.2,3.1837311]
[1736127259500,1.34518367,3624.7,3624.4,0.24837]
[1736127259697,3.45614,3624.9,3624.5,0.24836]
[1736127259902,3.2078,3624.9,3624.6,0.5317]
[1736127260197,0.24835,3624.7,3624.6,0.5317]
[1736127261402,0.24835,3624.8,3624.6,0.5317]
[1736127263199,0.24835,3624.7,3624.6,0.5317]
[1736127263794,0.24835,3624.7,3624.3,0.75298]
[1736127264093,0.4984,3624.6,3624.3,1.25108]
[1736127265902,0.75945,3624.8,3624.3,1.0027]
[1736127266103,0.75945,3624.8,3624.4,0.24837]
[1736127266303,0.75945,3624.8,3624.3,1.25108]
[1736127266704,0.75945,3624.8,3624.4,0.24837]
[1736127267303,3.98694357,3624.8,3624.4,0.24837]